fUSD/lending_fUSD_20250514
["ID","MTS","AMOUNT","RATE_DAILY","PERIOD"]
[361078282,1747234249326,-499.26,0.00011242,2]
[361078283,1747234249335,-591.57,0.00011242,2]
[361078284,1747234249346,-400.0,0.00011242,2]
[361078285,1747234249355,-1045.17,0.00011242,2]
[361078286,1747234249364,-400.0,0.00011242,2]
[361078287,1747234249373,-424.03,0.00011242,2]
[361078288,1747234249385,-400.0,0.00011242,2]
[361078289,1747234249395,-400.0,0.00011242,2]
[361078290,1747234249405,-400.0,0.00011242,2]
[361078291,1747234249415,-400.0,0.00011242,2]
[361078292,1747234249424,-423.22668239,0.00011242,2]
[361078293,1747234249434,-625.23,0.00011242,2]
[361078294,1747234249443,-400.0,0.00011242,2]
[361078295,1747234249455,-731.43,0.00011242,2]
[361078296,1747234249464,-400.0,0.00011242,2]
[361078297,1747234249473,-400.0,0.00011242,2]
[361078298,1747234249482,-732.06,0.00011242,2]
[361078299,1747234249491,-943.4,0.00011242,2]
[361078300,1747234249501,-400.0,0.00011242,2]
[361078301,1747234249511,-400.0,0.00011242,2]
[361078302,1747234249521,-400.0,0.00011242,2]
[361078303,1747234249531,-686.73,0.00011242,2]
[361078304,1747234249541,-400.0,0.00011242,2]
[361078305,1747234249550,-400.0,0.00011242,2]
[361078306,1747234249560,-400.0,0.00011242,2]
[361078307,1747234249569,-808.1,0.00011242,2]
[361078308,1747234249579,-636.06,0.00011242,2]
[361078309,1747234249588,-400.0,0.00011242,2]
[361078310,1747234249598,-338.80938459,0.00011242,2]
[361078311,1747234249608,-666.38,0.00011242,2]
[361078312,1747234249617,-400.0,0.00011242,2]
[361078313,1747234249627,-400.0,0.00011242,2]
[361078314,1747234249637,-400.0,0.00011242,2]
[361078315,1747234249647,-1313.15,0.00011242,2]
[361078316,1747234249656,-831.9,0.00011242,2]
[361078317,1747234249665,-445.12,0.00011242,2]
[361078318,1747234249675,-288.81,0.00011242,2]
[361078319,1747234249684,-400.0,0.00011242,2]
[361078320,1747234249693,-400.0,0.00011242,2]
[361078321,1747234249703,-400.0,0.00011242,2]
[361078322,1747234249713,-726.88,0.00011242,2]
[361078323,1747234249723,-400.0,0.00011242,2]
[361078324,1747234249732,-400.0,0.00011242,2]
[361078325,1747234249742,-404.54,0.00011242,2]
[361078326,1747234249751,-400.0,0.00011242,2]
[361078327,1747234249761,-522.5,0.00011242,2]
[361078328,1747234249770,-400.0,0.00011242,2]
[361078329,1747234249780,-632.6,0.00011242,2]
[361078330,1747234249790,-1747.42,0.00011242,2]
[361078331,1747234249799,-400.0,0.00011242,2]
[361078332,1747234249809,-400.0,0.00011242,2]
[361078333,1747234249818,-794.25,0.00011242,2]
[361078334,1747234249829,-400.0,0.00011242,2]
[361078335,1747234249838,-460.22,0.00011242,2]
[361078336,1747234249848,-1259.34,0.00011242,2]
[361078337,1747234249857,-164.72,0.00011292,2]
[361078338,1747234249867,-151.0,0.00011332,2]
[361078339,1747234249876,-151.0,0.00011334,2]
[361078340,1747234249886,-151.0,0.00011334,2]
[361078341,1747234249895,-151.0,0.00011335,2]
[361078342,1747234249905,-196.52801519,0.00011416,2]
[361078343,1747234249915,-2639.87683711,0.00011473,2]
[361078344,1747234249925,-2914.01203375,0.00011474,2]
[361078345,1747234249935,-803.72817691,0.00011505,2]
[361078346,1747234249946,-2751.0,0.00011507,2]
[361078347,1747234249956,-151.0,0.00011509,2]
[361078348,1747234249966,-693.3919763,0.00011509,2]
[361078349,1747234249975,-653.64,0.00011513,2]
[361078350,1747234249985,-1000.0,0.00011513,2]
[361078351,1747234249996,-400.0,0.00011514,2]
[361078352,1747234250005,-400.0,0.00011514,2]
[361078353,1747234250015,-400.0,0.00011514,2]
[361078354,1747234250024,-400.0,0.00011514,2]
[361078355,1747234250035,-400.0,0.00011514,2]
[361078356,1747234250045,-400.0,0.00011514,2]
[361078357,1747234250054,-207.289549,0.00011514,2]
[361078358,1747234250064,-24465.503004,0.00011514,2]
[361078359,1747234250073,-262.78816408,0.00011514,2]
[361078360,1747234250083,-400.0,0.00011514,2]
[361078361,1747234250304,-400.0,0.00011514,2]
[361078362,1747234250313,-481.507046,0.00011514,2]
[361078363,1747234250323,-400.0,0.00011514,2]
[361078364,1747234250333,-539.3,0.00011514,2]
[361078365,1747234250343,-250.0,0.00011514,2]
[361078366,1747234250352,-400.0,0.00011514,2]
[361078367,1747234250362,-400.0,0.00011514,2]
[361078368,1747234250372,-400.0,0.00011514,2]
[361078369,1747234250382,-404.22,0.00011514,2]
[361078370,1747234250393,-400.0,0.00011514,2]
[361078371,1747234250403,-400.0,0.00011514,2]
[361078372,1747234250417,-400.0,0.00011514,2]
[361078373,1747234250426,-722.34,0.00011514,2]
[361078374,1747234250436,-400.0,0.00011514,2]
[361078375,1747234250445,-400.0,0.00011514,2]
[361078376,1747234250459,-2815.78,0.00011514,2]
[361078377,1747234250469,-377.10481776,0.00011514,2]
[361078378,1747234250479,-400.0,0.00011514,2]
[361078379,1747234250489,-2613.51,0.00011514,2]
[361078380,1747234250499,-400.0,0.00011514,2]
[361078381,1747234250508,-1082.58,0.00011514,2]
[361078382,1747234250518,-400.0,0.00011514,2]
[361078383,1747234250528,-400.0,0.00011514,2]
[361078384,1747234250538,-1078.51,0.00011514,2]
[361078385,1747234250548,-400.0,0.00011514,2]
[361078386,1747234250557,-400.0,0.00011514,2]
[361078387,1747234250567,-400.0,0.00011514,2]
[361078388,1747234250576,-603.15,0.00011514,2]
[361078389,1747234250586,-487.65,0.00011514,2]
[361078390,1747234250595,-400.0,0.00011514,2]
[361078391,1747234250604,-400.0,0.00011514,2]
[361078392,1747234250613,-400.0,0.00011514,2]
[361078393,1747234250623,-558.91,0.00011514,2]
[361078394,1747234250632,-571.45,0.00011514,2]
[361078395,1747234250641,-2019.53,0.00011514,2]
[361078396,1747234250650,-400.0,0.00011514,2]
[361078397,1747234250662,-202.71431066,0.00011514,2]
[361078398,1747234250672,-958.96,0.00011514,2]
[361078399,1747234250681,-400.0,0.00011514,2]
[361078400,1747234250691,-615.25,0.00011514,2]
[361078401,1747234250700,-1747.24,0.00011514,2]
[361078402,1747234250710,-669.92,0.00011514,2]
[361078403,1747234250719,-400.0,0.00011514,2]
[361078404,1747234250728,-400.0,0.00011514,2]
[361078405,1747234250738,-565.21,0.00011514,2]
[361078406,1747234250748,-1143.69,0.00011514,2]
[361078407,1747234250757,-489.13,0.00011514,2]
[361078408,1747234250767,-400.0,0.00011514,2]
[361078409,1747234250776,-400.0,0.00011514,2]
[361078410,1747234250786,-400.0,0.00011514,2]
[361078411,1747234250795,-400.0,0.00011514,2]
[361078412,1747234250805,-400.0,0.00011514,2]
[361078413,1747234250815,-420.87,0.00011514,2]
[361078414,1747234250825,-400.0,0.00011514,2]
[361078415,1747234250835,-841.18,0.00011514,2]
[361078416,1747234250844,-852.34,0.00011514,2]
[361078417,1747234250854,-1260.15,0.00011514,2]
[361078418,1747234250863,-400.0,0.00011514,2]
[361078419,1747234250872,-2542.32,0.00011514,2]
[361078420,1747234250882,-898.08,0.00011514,2]
[361078421,1747234250891,-400.0,0.00011514,2]
[361078422,1747234250972,-400.0,0.00011514,2]
[361078423,1747234250982,-2180.44,0.00011514,2]
[361078424,1747234250992,-501.73,0.00011514,2]
[361078425,1747234251001,-2274.21,0.00011514,2]
[361078426,1747234251010,-400.0,0.00011514,2]
[361078427,1747234251019,-400.0,0.00011514,2]
[361078428,1747234251028,-6022.93,0.00011514,2]
[361078429,1747234251039,-1318.91,0.00011514,2]
[361078430,1747234251049,-400.0,0.00011514,2]
[361078431,1747234251059,-536.0,0.00011514,2]
[361078432,1747234251068,-400.0,0.00011514,2]
[361078433,1747234251077,-417.08,0.00011514,2]
[361078434,1747234251086,-10046.45,0.00011514,2]
[361078435,1747234251095,-400.0,0.00011514,2]
[361078436,1747234251104,-837.52,0.00011514,2]
[361078437,1747234251115,-829.73,0.00011514,2]
[361078438,1747234251125,-400.0,0.00011514,2]
[361078439,1747234251134,-1522.93,0.00011514,2]
[361078440,1747234251143,-876.6,0.00011514,2]
[361078441,1747234251153,-400.0,0.00011514,2]
[361078442,1747234251166,-400.0,0.00011514,2]
[361078443,1747234251175,-422.87,0.00011514,2]
[361078444,1747234251185,-400.0,0.00011514,2]
[361078445,1747234251194,-400.0,0.00011514,2]
[361078446,1747234251204,-400.0,0.00011514,2]
[361078447,1747234251214,-989.23,0.00011514,2]
[361078448,1747234251223,-896.77,0.00011514,2]
[361078449,1747234251234,-607.1,0.00011514,2]
[361078450,1747234251244,-892.78,0.00011514,2]
[361078451,1747234251254,-400.0,0.00011514,2]
[361078452,1747234251263,-1469.03,0.00011514,2]
[361078453,1747234251272,-3385.9,0.00011514,2]
[361078454,1747234251282,-400.0,0.00011514,2]
[361078455,1747234251291,-400.0,0.00011514,2]
[361078456,1747234251301,-1068.75,0.00011514,2]
[361078457,1747234251310,-2126.9,0.00011514,2]
[361078458,1747234251319,-1726.99,0.00011514,2]
[361078459,1747234251328,-400.0,0.00011514,2]
[361078460,1747234251338,-1060.21,0.00011514,2]
[361078461,1747234251347,-425.85,0.00011514,2]
[361078462,1747234251357,-493.09953622,0.00011514,2]
[361078463,1747234251367,-504.37,0.00011515,2]
[361078464,1747234251376,-400.0,0.00011515,2]
[361078465,1747234251385,-512.92,0.00011515,2]
[361078466,1747234251394,-400.0,0.00011515,2]
[361078467,1747234251403,-540.9,0.00011515,2]
[361078468,1747234251414,-700.57,0.00011515,2]
[361078469,1747234251423,-400.0,0.00011515,2]
[361078470,1747234251433,-400.0,0.00011515,2]
[361078471,1747234251442,-400.0,0.00011515,2]
[361078472,1747234251453,-400.0,0.00011515,2]
[361078473,1747234251464,-447.57,0.00011515,2]
[361078474,1747234251473,-978.8,0.00011515,2]
[361078475,1747234251482,-400.0,0.00011515,2]
[361078476,1747234251492,-400.0,0.00011515,2]
[361078477,1747234251503,-525.61,0.00011515,2]
[361078478,1747234251512,-400.0,0.00011515,2]
[361078479,1747234251522,-490.06,0.00011515,2]
[361078480,1747234251532,-623.82,0.00011515,2]
[361078481,1747234251542,-400.0,0.00011515,2]
[361078482,1747234251552,-400.0,0.00011515,2]
[361078483,1747234251561,-400.0,0.00011515,2]
[361078484,1747234251571,-400.0,0.00011515,2]
[361078485,1747234251580,-400.0,0.00011515,2]
[361078486,1747234251589,-400.0,0.00011515,2]
[361078487,1747234251599,-400.0,0.00011515,2]
[361078488,1747234251608,-426.56,0.00011515,2]
[361078489,1747234251618,-172.74,0.00011515,2]
[361078490,1747234251627,-400.0,0.00011515,2]
[361078491,1747234251637,-464.53,0.00011515,2]
[361078492,1747234251646,-400.0,0.00011515,2]
[361078493,1747234251657,-569.06,0.00011515,2]
[361078494,1747234251666,-1081.75,0.00011515,2]
[361078495,1747234251676,-400.0,0.00011515,2]
[361078496,1747234251686,-544.82,0.00011515,2]
[361078497,1747234251695,-400.0,0.00011515,2]
[361078498,1747234251704,-429.31,0.00011515,2]
[361078499,1747234251714,-400.0,0.00011515,2]
[361078500,1747234251723,-455.47,0.00011515,2]
[361078501,1747234251733,-474.03,0.00011515,2]
[361078502,1747234251742,-539.89,0.00011515,2]
[361078503,1747234251751,-400.0,0.00011515,2]
[361078504,1747234251761,-400.0,0.00011515,2]
[361078505,1747234251770,-400.0,0.00011515,2]
[361078506,1747234251779,-667.94,0.00011515,2]
[361078507,1747234251789,-400.0,0.00011515,2]
[361078508,1747234251799,-400.0,0.00011515,2]
[361078509,1747234251808,-400.0,0.00011515,2]
[361078510,1747234251818,-400.0,0.00011515,2]
[361078511,1747234251827,-711.45,0.00011515,2]
[361078512,1747234251836,-400.0,0.00011515,2]
[361078513,1747234251846,-457.04,0.00011515,2]
[361078514,1747234251855,-598.73,0.00011515,2]
[361078515,1747234251865,-400.0,0.00011515,2]
[361078516,1747234251875,-564.88,0.00011515,2]
[361078517,1747234251884,-435.56,0.00011515,2]
[361078518,1747234251894,-524.75,0.00011515,2]
[361078519,1747234251903,-461.18,0.00011515,2]
[361078520,1747234251914,-400.0,0.00011515,2]
[361078521,1747234251924,-400.0,0.00011515,2]
[361078522,1747234251934,-400.0,0.00011515,2]
[361078523,1747234251943,-1092.37,0.00011515,2]
[361078524,1747234251953,-5266.99,0.00011515,2]
[361078525,1747234251962,-612.94,0.00011515,2]
[361078526,1747234251972,-400.0,0.00011515,2]
[361078527,1747234251982,-727.13,0.00011515,2]
[361078528,1747234251991,-2391.97,0.00011515,2]
[361078529,1747234252001,-400.0,0.00011515,2]
[361078530,1747234252010,-849.03,0.00011515,2]
[361078531,1747234252020,-1512.71,0.00011515,2]
[361078532,1747234252029,-742.53,0.00011515,2]
[361078533,1747234252039,-1562.74,0.00011515,2]
[361078534,1747234252048,-1162.28,0.00011515,2]
[361078535,1747234252057,-698.43,0.00011515,2]
[361078536,1747234252067,-859.04,0.00011515,2]
[361078537,1747234252076,-572.21,0.00011515,2]
[361078538,1747234252086,-8466.33,0.00011515,2]
[361078539,1747234252095,-400.0,0.00011515,2]
[361078540,1747234252104,-2230.64,0.00011515,2]
[361078541,1747234252113,-1483.05,0.00011515,2]
[361078542,1747234252122,-400.0,0.00011515,2]
[361078543,1747234252131,-855.66,0.00011515,2]
[361078544,1747234252141,-1983.17,0.00011515,2]
[361078545,1747234252150,-500.27,0.00011515,2]
[361078546,1747234252163,-400.0,0.00011515,2]
[361078547,1747234252173,-1125.01,0.00011515,2]
[361078548,1747234252182,-530.07,0.00011515,2]
[361078549,1747234252192,-7347.98,0.00011515,2]
[361078550,1747234252201,-13036.72,0.00011515,2]
[361078551,1747234252211,-400.0,0.00011515,2]
[361078552,1747234252220,-1210.18,0.00011515,2]
[361078553,1747234252230,-1098.63,0.00011515,2]
[361078554,1747234252240,-1334.58,0.00011515,2]
[361078555,1747234252249,-400.0,0.00011515,2]
[361078556,1747234252259,-4346.4,0.00011515,2]
[361078557,1747234252268,-446.18,0.00011515,2]
[361078558,1747234252277,-2647.17,0.00011515,2]
[361078559,1747234252286,-400.0,0.00011515,2]
[361078560,1747234252296,-2930.44,0.00011515,2]
[361078561,1747234252305,-400.0,0.00011515,2]
[361078562,1747234252314,-999.48,0.00011515,2]
[361078563,1747234252324,-1259.34,0.00011515,2]
[361078564,1747234252333,-400.0,0.00011515,2]
[361078565,1747234252342,-400.0,0.00011515,2]
[361078566,1747234252351,-718.09,0.00011515,2]
[361078567,1747234252361,-526.47,0.00011515,2]
[361078568,1747234252370,-458.62,0.00011515,2]
[361078569,1747234252379,-3175.61,0.00011515,2]
[361078570,1747234252388,-400.0,0.00011515,2]
[361078571,1747234252397,-5148.76,0.00011515,2]
[361078572,1747234252408,-663.94,0.00011515,2]
[361078573,1747234252417,-400.0,0.00011515,2]
[361078574,1747234252427,-400.0,0.00011515,2]
[361078575,1747234252436,-596.71,0.00011515,2]
[361078576,1747234252445,-781.03,0.00011515,2]
[361078577,1747234252457,-400.0,0.00011515,2]
[361078578,1747234252467,-1749.96,0.00011515,2]
[361078579,1747234252476,-2148.25,0.00011515,2]
[361078580,1747234252486,-400.0,0.00011515,2]
[361078581,1747234252496,-558.95,0.00011515,2]
[361078582,1747234252506,-400.0,0.00011515,2]
[361078583,1747234252515,-4527.42,0.00011515,2]
[361078584,1747234252524,-400.0,0.00011515,2]
[361078585,1747234252534,-612.62,0.00011515,2]
[361078586,1747234252543,-400.0,0.00011515,2]
[361078587,1747234252553,-7992.43,0.00011515,2]
[361078588,1747234252562,-400.0,0.00011515,2]
[361078589,1747234252572,-400.0,0.00011515,2]
[361078590,1747234252581,-618.19,0.00011515,2]
[361078591,1747234252591,-998.53,0.00011515,2]
[361078592,1747234252600,-649.8,0.00011515,2]
[361078593,1747234252610,-400.0,0.00011515,2]
[361078594,1747234252619,-3706.75,0.00011515,2]
[361078595,1747234252629,-400.0,0.00011515,2]
[361078596,1747234252639,-1106.79,0.00011515,2]
[361078597,1747234252648,-512.26,0.00011515,2]
[361078598,1747234252660,-5610.69,0.00011515,2]
[361078599,1747234252670,-742.03,0.00011515,2]
[361078600,1747234252680,-400.0,0.00011515,2]
[361078601,1747234252690,-400.0,0.00011515,2]
[361078602,1747234252699,-1480.09,0.00011515,2]
[361078603,1747234252710,-400.0,0.00011515,2]
[361078604,1747234252719,-1713.22,0.00011515,2]
[361078605,1747234252729,-400.0,0.00011515,2]
[361078606,1747234252739,-431.74,0.00011515,2]
[361078607,1747234252749,-400.0,0.00011515,2]
[361078608,1747234252759,-400.0,0.00011515,2]
[361078609,1747234252769,-400.0,0.00011515,2]
[361078610,1747234252779,-402.57,0.00011516,2]
[361078611,1747234252788,-400.0,0.00011516,2]
[361078612,1747234252798,-400.0,0.00011516,2]
[361078613,1747234252808,-186.58147237,0.00011516,2]
[361078614,1747234252818,-400.0,0.00011516,2]
[361078615,1747234252827,-321.66,0.00011516,2]
[361078616,1747234252837,-539.47,0.00011516,2]
[361078617,1747234252847,-400.0,0.00011516,2]
[361078618,1747234252856,-400.0,0.00011516,2]
[361078619,1747234252867,-400.0,0.00011516,2]
[361078620,1747234252877,-400.0,0.00011516,2]
[361078621,1747234252887,-400.0,0.00011516,2]
[361078622,1747234252897,-400.0,0.00011516,2]
[361078623,1747234252907,-400.0,0.00011516,2]
[361078624,1747234252917,-400.0,0.00011516,2]
[361078625,1747234252927,-400.0,0.00011516,2]
[361078626,1747234252937,-400.0,0.00011516,2]
[361078627,1747234252947,-400.0,0.00011516,2]
[361078628,1747234252957,-400.0,0.00011516,2]
[361078629,1747234252966,-400.0,0.00011516,2]
[361078630,1747234252976,-635.17,0.00011516,2]
[361078631,1747234252985,-447.27023011,0.00011516,2]
[361078632,1747234252995,-400.0,0.00011516,2]
[361078633,1747234253005,-400.0,0.00011516,2]
[361078634,1747234253014,-400.0,0.00011516,2]
[361078635,1747234253024,-400.0,0.00011516,2]
[361078636,1747234253034,-731.17,0.00011516,2]
[361078637,1747234253043,-400.0,0.00011516,2]
[361078638,1747234253053,-400.0,0.00011516,2]
[361078639,1747234253063,-691.66,0.00011516,2]
[361078640,1747234253073,-212.45649854,0.00011516,2]
[361078641,1747234253083,-400.0,0.00011516,2]
[361078642,1747234253092,-400.0,0.00011516,2]
[361078643,1747234253102,-400.0,0.00011516,2]
[361078644,1747234253111,-534.77,0.00011516,2]
[361078645,1747234253121,-1120.87,0.00011516,2]
[361078646,1747234253132,-400.0,0.00011516,2]
[361078647,1747234253142,-400.0,0.00011516,2]
[361078648,1747234253151,-400.0,0.00011516,2]
[361078649,1747234253168,-405.38,0.00011516,2]
[361078650,1747234253179,-400.0,0.00011516,2]
[361078651,1747234253189,-441.88,0.00011516,2]
[361078652,1747234253200,-400.0,0.00011516,2]
[361078653,1747234253210,-400.0,0.00011516,2]
[361078654,1747234253220,-367.24377034,0.00011516,2]
[361078655,1747234253229,-400.0,0.00011516,2]
[361078656,1747234253240,-494.71,0.00011516,2]
[361078657,1747234253250,-400.0,0.00011516,2]
[361078658,1747234253260,-400.0,0.00011516,2]
[361078659,1747234253269,-400.0,0.00011516,2]
[361078660,1747234253279,-767.49,0.00011516,2]
[361078661,1747234253288,-400.0,0.00011516,2]
[361078662,1747234253298,-1083.0,0.00011516,2]
[361078663,1747234253308,-400.0,0.00011516,2]
[361078664,1747234253318,-400.0,0.00011516,2]
[361078665,1747234253328,-425.2,0.00011516,2]
[361078666,1747234253337,-590.91,0.00011516,2]
[361078667,1747234253347,-1166.99,0.00011516,2]
[361078668,1747234253357,-400.0,0.00011516,2]
[361078669,1747234253367,-570.18,0.00011516,2]
[361078670,1747234253377,-400.0,0.00011516,2]
[361078671,1747234253387,-176.22117785,0.00011516,2]
[361078672,1747234253395,-400.0,0.00011516,2]
[361078673,1747234253403,-400.0,0.00011516,2]
[361078674,1747234253418,-400.0,0.00011516,2]
[361078675,1747234253427,-400.0,0.00011516,2]
[361078676,1747234253437,-1123.96,0.00011516,2]
[361078677,1747234253445,-631.94,0.00011516,2]
[361078678,1747234253457,-400.0,0.00011516,2]
[361078679,1747234253467,-400.0,0.00011516,2]
[361078680,1747234253477,-400.0,0.00011516,2]
[361078681,1747234253486,-400.0,0.00011516,2]
[361078682,1747234253496,-2276.95,0.00011516,2]
[361078683,1747234253506,-754.18,0.00011516,2]
[361078684,1747234253516,-400.0,0.00011516,2]
[361078685,1747234253526,-400.0,0.00011516,2]
[361078686,1747234253536,-454.25,0.00011516,2]
[361078687,1747234253547,-494.78,0.00011516,2]
[361078688,1747234253557,-400.0,0.00011516,2]
[361078689,1747234253567,-400.0,0.00011516,2]
[361078690,1747234253576,-388.74762804,0.00011516,2]
[361078691,1747234253586,-693.11,0.00011516,2]
[361078692,1747234253596,-400.0,0.00011516,2]
[361078693,1747234253606,-400.0,0.00011516,2]
[361078694,1747234253615,-400.0,0.00011516,2]
[361078695,1747234253625,-400.0,0.00011516,2]
[361078696,1747234253635,-1105.54,0.00011516,2]
[361078697,1747234253646,-400.0,0.00011516,2]
[361078698,1747234253658,-400.0,0.00011516,2]
[361078699,1747234253667,-747.89,0.00011516,2]
[361078700,1747234253677,-400.0,0.00011516,2]
[361078701,1747234253687,-400.0,0.00011516,2]
[361078702,1747234253697,-499.26,0.00011516,2]
[361078703,1747234253706,-591.57,0.00011516,2]
[361078704,1747234253716,-400.0,0.00011516,2]
[361078705,1747234253726,-1045.17,0.00011516,2]
[361078706,1747234253735,-400.0,0.00011516,2]
[361078707,1747234253745,-424.03,0.00011516,2]
[361078708,1747234253755,-400.0,0.00011516,2]
[361078709,1747234253764,-400.0,0.00011516,2]
[361078710,1747234253774,-400.0,0.00011516,2]
[361078711,1747234253783,-625.23,0.00011516,2]
[361078712,1747234253793,-400.0,0.00011516,2]
[361078713,1747234253802,-731.43,0.00011516,2]
[361078714,1747234253812,-400.0,0.00011516,2]
[361078715,1747234253821,-400.0,0.00011516,2]
[361078716,1747234253831,-732.06,0.00011516,2]
[361078717,1747234253840,-943.4,0.00011516,2]
[361078718,1747234253850,-400.0,0.00011516,2]
[361078719,1747234253860,-400.0,0.00011516,2]
[361078720,1747234253870,-686.73,0.00011516,2]
[361078721,1747234253879,-400.0,0.00011516,2]
[361078722,1747234253889,-400.0,0.00011516,2]
[361078723,1747234253899,-400.0,0.00011516,2]
[361078724,1747234253910,-808.1,0.00011516,2]
[361078725,1747234253919,-636.06,0.00011516,2]
[361078726,1747234253930,-400.0,0.00011516,2]
[361078727,1747234253939,-666.38,0.00011516,2]
[361078728,1747234253949,-400.0,0.00011516,2]
[361078729,1747234253958,-350.62658123,0.00011516,2]
[361078730,1747234253968,-400.0,0.00011516,2]
[361078731,1747234253977,-1313.15,0.00011516,2]
[361078732,1747234253986,-831.9,0.00011516,2]
[361078733,1747234253996,-445.12,0.00011516,2]
[361078734,1747234254005,-400.0,0.00011516,2]
[361078735,1747234254015,-400.0,0.00011516,2]
[361078736,1747234254024,-400.0,0.00011516,2]
[361078737,1747234254033,-726.88,0.00011516,2]
[361078738,1747234254044,-400.0,0.00011516,2]
[361078739,1747234254054,-400.0,0.00011516,2]
[361078740,1747234254063,-404.54,0.00011516,2]
[361078741,1747234254073,-400.0,0.00011516,2]
[361078742,1747234254083,-522.5,0.00011516,2]
[361078743,1747234254092,-632.6,0.00011516,2]
[361078744,1747234254102,-1747.42,0.00011516,2]
[361078745,1747234254112,-400.0,0.00011516,2]
[361078746,1747234254121,-400.0,0.00011516,2]
[361078747,1747234254131,-794.25,0.00011516,2]
[361078748,1747234254142,-460.22,0.00011516,2]
[361078749,1747234254151,-1000.0,0.00011521,2]
[361078750,1747234254162,-1000.0,0.00011521,2]
[361078751,1747234254171,-1185.805,0.00011532,2]
[361078752,1747234254181,-931.0,0.00011579,2]
[361078753,1747234254191,-1305.0,0.00011579,2]
[361078754,1747234254200,-628.0,0.00011579,2]
[361078755,1747234254210,-798.0,0.00011579,2]
[361078756,1747234254220,-1251.0,0.00011579,2]
[361078757,1747234254230,-584.0,0.00011579,2]
[361078758,1747234254239,-919.0,0.00011579,2]
[361078759,1747234254249,-1457.0,0.00011579,2]
[361078760,1747234254258,-553.0,0.00011579,2]
[361078761,1747234254268,-154.0,0.00011579,2]
[361078762,1747234254277,-837.0,0.00011579,2]
[361078763,1747234254287,-879.0,0.00011579,2]
[361078764,1747234254296,-4032.0,0.00011579,2]
[361078765,1747234254306,-6822.0,0.00011579,2]
[361078766,1747234254315,-2639.87683711,0.00011777,2]
[361078767,1747234254325,-2914.01203375,0.00011777,2]
[361078768,1747234254334,-653.64,0.00011787,2]
[361078769,1747234254344,-400.0,0.00011788,2]
[361078770,1747234254353,-400.0,0.00011788,2]
[361078771,1747234254363,-306.74511296,0.00011788,2]
[361078772,1747234254373,-400.0,0.00011788,2]
[361078773,1747234254382,-400.0,0.00011788,2]
[361078774,1747234254391,-400.0,0.00011788,2]
[361078775,1747234254401,-207.289549,0.00011788,2]
[361078776,1747234254413,-24465.503004,0.00011788,2]
[361078777,1747234254422,-400.0,0.00011788,2]
[361078778,1747234254432,-400.0,0.00011788,2]
[361078779,1747234254442,-481.507046,0.00011788,2]
[361078780,1747234254453,-400.0,0.00011788,2]
[361078781,1747234254464,-539.3,0.00011788,2]